[Event "1st FIDE Olympiad DIS 2023"]
[Site "Belgrade"]
[Date "2023.02.03"]
[Round "5.25"]
[White "Nikac, Predrag"]
[Black "Rivas Cabrera, Edgar"]
[Result "1-0"]
[ECO "B26"]
[WhiteElo "2285"]
[BlackElo "1987"]
[Annotator "TA"]
[PlyCount "119"]
[EventDate "2023.01.30"]
[EventType "team-tourn"]
[EventCountry "SRB"]
[SourceTitle "playchess.com"]
[Source "ChessBase"]
[SourceQuality "1"]
[WhiteTeam "Montenegro"]
[BlackTeam "Venezuela"]
[WhiteTeamCountry "MNE"]
[BlackTeamCountry "VEN"]
[TimeControl "40/5400+30:1800+30"]

{[%evp 17,119,0,0,-21,-15,-23,0,2,45,48,49,50,78,71,74,31,36,28,35,35,35,12,37,0,57,72,83,75,91,93,110,103,97,93,93,101,97,93,94,94,94,77,86,54,49,43,106,95,172,177,174,165,220,218,187,213,178,71,66,58,58,60,70,55,62,56,70,70,71,27,120,120,120,120,120,120,120,120,120,120,120,120,120,120,120,120,120,120,120,120,120,65,234,194,610,231,970,437,29992,29993,29993,29994,29994,29995]} 1. e4 {[%emt 0:03:36]} c5 {[%emt 0:00:13]} 2. Nc3 {[%emt 0:00:15]} Nc6 {[%emt 0:01:25]} 3. Nge2 {[%emt 0:00:49]} g6 {[%emt 0:01:40]} 4. g3 {[%emt 0:00:58]} Bg7 {[%emt 0:03:21]} 5. Bg2 {[%emt 0:00:06]} d6 {[%emt 0:01:11]} 6. d3 {[%emt 0:00:53]} e6 {[%emt 0:00:46]} 7. O-O {[%emt 0:00:58]} Nge7 {[%emt 0:00:08]} 8. Be3 {[%emt 0:00:42]} Nd4 {[%emt 0:02:14]} 9. Rb1 {[%emt 0:04:54]} O-O {[%emt 0:06:10] 9...0-0 is better than 9...Nec6.} 10. a3 {[%emt 0:15:14] B26: Closed Sicilian: 3 g3, lines with early Be3.} e5 {[%emt 0:25:20]} 11. b4 {[%emt 0:12:55] [#]} cxb4 $146 {[%emt 0:15:51]} ({Predecessor:} 11... b6 12. f4 Be6 13. bxc5 dxc5 14. fxe5 Bxe5 15. Nf4 Bd7 16. Qd2 Bc6 17. Rbe1 Qd6 {½-½ Oratovsky,M (2465)-Zugic,I (2335) North Bay op 1998 (7)}) 12. axb4 {[%emt 0:00:42] The position is equal.} Nxe2+ {[%emt 0:01:28]} 13. Nxe2 {[%emt 0:06:14]} Be6 {[%emt 0:05:57]} 14. c4 {[%emt 0:03:49]} Qd7 {[%emt 0:02:29]} 15. Qd2 {[%emt 0:08:02]} f5 {[%emt 0:06:30]} 16. Bg5 {[%emt 0:02:37]} Kh8 {[%emt 0:02:59]} 17. Bxe7 {[%emt 0:05:26]} (17. exf5 {is interesting.} gxf5 18. d4 f4 19. gxf4 Bxc4 20. dxe5 h6 21. Bf6) 17... Qxe7 {[%emt 0:00:41]} 18. exf5 {[%emt 0:00:35]} gxf5 {[%emt 0:01:05]} 19. f4 {[%emt 0:00:27]} e4 {[%emt 0:07:42]} 20. Rfe1 {[%emt 0:04:37]} Qf7 {[%emt 0:06:13]} (20... Rac8 $11) 21. dxe4 $14 {[%emt 0:03:32]} fxe4 {[%emt 0:00:24]} 22. Nc3 {[%emt 0:02:25]} (22. Qxd6 Rad8 23. Qc5 Bxc4 $17) (22. Bxe4 Bxc4 23. Nc3 (23. Qxd6 $2 Rad8 $19) 23... Rac8 $14) 22... Bxc4 {[%emt 0:00:48]} 23. Nxe4 {[%emt 0:00:11]} Rad8 {[%emt 0:02:08][%cal Ba8d8,Bd8d6,Bd6d2,Bd2b2][%mdl 32]} 24. Rbd1 {[%emt 0:03:39]} (24. Nxd6 $6 Qc7 25. Red1 b5 $11) 24... Qg8 {[%emt 0:04:16]} 25. Nxd6 {[%emt 0:03:30][%mdl 64] Discovered Attack} Bb3 {[%emt 0:00:36] [#]} 26. Bd5 $1 {[%emt 0:02:24]} Rxd6 {[%emt 0:00:58]} 27. Bxg8 {[%emt 0:00:07][%mdl 64] Discovered Attack} Rxd2 {[%emt 0:00:04]} 28. Bxb3 {[%emt 0:00:22]} Rb2 {[%emt 0:00:47]} 29. Rd3 {[%emt 0:00:46]} Bf6 {[%emt 0:00:19]} 30. Red1 {[%emt 0:03:38]} Re8 {[%emt 0:00:41]} 31. R1d2 {[%emt 0:00:35]} Re1+ {[%emt 0:00:37]} ({Black should try} 31... Rxd2 $14 32. Rxd2 Re4) 32. Kg2 {[%emt 0:00:15]} Reb1 {[%emt 0:00:13] [#]} (32... Re3 $16 {was called for.} 33. Rxe3 Rxd2+ 34. Kf3 Kg7) 33. Rxb2 $1 $18 {[%emt 0:02:27]} Rxb2+ {[%emt 0:00:08][%mdl 4096] Endgame KRB-KRB} 34. Kh3 {[%emt 0:00:54]} b5 {[%emt 0:01:24]} (34... h5 $142 35. b5 a5 36. bxa6 bxa6) 35. Kg4 {[%emt 0:00:37]} Be7 {[%emt 0:00:31]} 36. Kf5 {[%emt 0:03:05] Threatens to win with Re3.} Kg7 {[%emt 0:00:20][%cal Og7f8]} 37. Rd7 {[%emt 0:00:42]} (37. Rc3 $18 {has better winning chances.}) 37... Kf8 $16 {[%emt 0:00:16]} 38. Be6 {[%emt 0:02:07] Rb7 is the strong threat.} Rxh2 {[%emt 0:00:49]} 39. Rxa7 {[%emt 0:01:40] And now Ra8+ would win.} Bxb4 {[%emt 0:00:16]} 40. Rf7+ {[%emt 0:01:55]} Ke8 {[%emt 0:00:14]} 41. Rb7 {[%emt 0:30:23]} Be1 {[%emt 0:31:16]} 42. g4 {[%emt 0:00:00]} (42. Rxb5 $2 {too greedy.} Rh5+ 43. Ke4 Rxb5 $19) 42... Bd2 {[%emt 0:00:00]} 43. Bd7+ {[%emt 0:00:00]} Kd8 {[%emt 0:00:00]} (43... Kf8 $1 $11 {remains equal.}) 44. Bxb5 {[%emt 0:00:00]} Rf2 {[%emt 0:00:00]} 45. Rd7+ {[%emt 0:00:00]} ({Much worse is} 45. Rxh7 $6 Rxf4+ 46. Ke6 Re4+ 47. Kd5 Re7 $11) 45... Kc8 {[%emt 0:00:00]} 46. Rd4 $1 {[%emt 0:00:00] White is more active.} ({Don't play} 46. Rxh7 $6 Rxf4+ 47. Ke5 Rb4 $11) 46... h6 {[%emt 0:00:00]} 47. Be8 {[%emt 0:00:00]} Kc7 {[%emt 0:00:00]} 48. Bf7 {[%emt 0:00:00]} Kc6 {[%emt 0:00:00]} 49. Bb3 {[%emt 0:01:41]} Kc5 {[%emt 0:00:00]} 50. Rc4+ {[%emt 0:01:01]} Kd6 {[%emt 0:00:00]} 51. Re4 {[%emt 0:01:27]} Bc1 {[%emt 0:00:29]} 52. Rd4+ {[%emt 0:00:25]} Ke7 {[%emt 0:00:12]} 53. Rc4 {[%emt 0:00:39]} Bd2 {[%emt 0:00:18]} 54. Ke5 {[%emt 0:01:03]} (54. Ba4 $16) 54... h5 $2 {[%emt 0:01:45] This costs Black the game.} 55. g5 {[%emt 0:01:13][%cal Bg4g5,Bg5g6][%mdl 32] Black must now prevent g6.} Kf8 $2 {[%emt 0:02:44]} (55... Rf3) 56. Bc2 $2 {[%emt 0:00:57]} (56. g6 {aiming for Kf6.} Ba5 57. Rc8+ Kg7 58. Kf5) 56... Kg8 $2 {[%emt 0:00:49]} (56... h4 57. Bf5 Rf3) 57. Bf5 {[%emt 0:00:21]} (57. Bd3 $142 Kf8 58. Rc8+ Ke7 59. Rc7+ Kd8 60. Rf7) 57... Kg7 {[%emt 0:01:03]} (57... Rf3 $18 58. Kf6 Bc3+ 59. Kg6 Kf8) 58. Rc7+ {[%emt 0:00:17] White mates.} Kf8 {[%emt 0:00:59]} 59. Kf6 {[%emt 0:00:10][%cal Rc7c8]} Re2 {[%emt 0:00:30]} 60. g6 {[%emt 0:00:57] Weighted Error Value: White=0.28 (precise) /Black=0.41} 1-0

[Event "1st FIDE Olympiad DIS 2023"]
[Site "Belgrade"]
[Date "2023.02.03"]
[Round "5.26"]
[White "Otero Munelo, Harlen Jose"]
[Black "Ivanovic, Milan"]
[Result "1-0"]
[ECO "E61"]
[WhiteElo "2099"]
[BlackElo "1908"]
[Annotator "TA"]
[PlyCount "73"]
[EventDate "2023.01.30"]
[EventType "team-tourn"]
[EventCountry "SRB"]
[SourceTitle "playchess.com"]
[Source "ChessBase"]
[SourceQuality "1"]
[WhiteTeam "Venezuela"]
[BlackTeam "Montenegro"]
[WhiteTeamCountry "VEN"]
[BlackTeamCountry "MNE"]
[TimeControl "40/5400+30:1800+30"]

{[%evp 19,72,-11,57,31,74,67,91,102,112,80,76,74,76,75,87,56,65,35,69,64,64,70,66,71,82,68,130,119,138,51,51,51,51,51,51,51,51,51,191,171,183,174,368,345,609,312,332,302,1696,1643,29989,29990,29997,29998,29999]} 1. c4 {[%emt 0:00:08]} e5 {[%emt 0:00:38]} 2. Nc3 {[%emt 0:00:13]} Nf6 {[%emt 0:01:15]} 3. g3 {[%emt 0:00:11]} g6 {[%emt 0:00:29]} 4. Bg2 {[%emt 0:00:09]} Bg7 {[%emt 0:00:37]} 5. e3 {[%emt 0:01:13]} O-O {[%emt 0:00:40]} 6. Nge2 {[%emt 0:00:07]} d6 {[%emt 0:00:46]} 7. O-O {[%emt 0:00:12]} c6 {[%emt 0:00:25]} 8. d4 {[%emt 0:00:16]} Nbd7 {[%emt 0:02:25]} 9. b3 {[%emt 0:00:07]} Re8 {[%emt 0:04:50]} 10. Ba3 {[%emt 0:00:20]} Nf8 {[%emt 0:13:09]} (10... exd4 $11 11. exd4 Nb6) 11. Qc2 {[%emt 0:05:33] E61: King's Indian: Early deviations for White, including Smyslov System.} (11. d5 $5 {[%cal Rd5c6]}) 11... exd4 {[%emt 0:05:48]} 12. Nxd4 {[%emt 0:02:51]} c5 {[%emt 0:23:23] [#]} 13. Nde2 {[%emt 0:04:00] [#] White is much more active. The black rooks are badly placed. White is better.} Bf5 $146 {[%emt 0:05:05]} ({Predecessor:} 13... Qa5 14. Bb2 Bf5 15. Qc1 Ne4 16. Nd5 Nd7 17. Bxg7 Kxg7 18. g4 Bxg4 19. f3 Qd2 20. Qxd2 Nxd2 {1-0 Lafuente,P (2587)-Khosla,S (2337) Mumbai Mayors Cup 3rd 2010 (11)}) 14. e4 {[%emt 0:04:21]} Bd7 {[%emt 0:14:54]} 15. Rad1 {[%emt 0:00:44]} Qc7 {[%emt 0:08:59]} 16. h3 {[%emt 0:26:45]} Rad8 {[%emt 0:00:42]} 17. Rd2 {[%emt 0:13:08]} Bc6 {[%emt 0:00:27]} 18. Rfd1 {[%emt 0:01:38]} Ne6 {[%emt 0:01:47]} 19. Bb2 {[%emt 0:10:08]} Ng5 {[%emt 0:00:59][%cal Rg5e4]} 20. f3 {[%emt 0:00:33]} a6 {[%emt 0:00:51]} 21. Kh2 {[%emt 0:08:34]} h5 {[%emt 0:00:25]} 22. h4 {[%emt 0:00:35]} Ngh7 {[%emt 0:00:31]} (22... Ne6 $14) 23. Nf4 $16 {[%emt 0:02:26]} b5 {[%emt 0:00:47]} 24. Bf1 {[%emt 0:03:18]} ({Better is} 24. cxb5 $16 axb5 25. a4) 24... b4 $14 {[%emt 0:00:23]} 25. Ncd5 $36 {[%emt 0:00:44][%mdl 2048] White fights for an advantage.} Nxd5 {[%emt 0:00:42]} 26. Nxd5 {[%emt 0:00:42]} Bxd5 {[%emt 0:00:14]} 27. Rxd5 {[%emt 0:00:06]} Nf6 {[%emt 0:01:23]} 28. R5d3 {[%emt 0:00:21]} Re7 {[%emt 0:02:16] [#] A mistake that costs the game.} ({Black should play} 28... Nd7 $14) 29. e5 $1 $18 {[%emt 0:06:19][%mdl 512]} Ne8 {[%emt 0:00:27]} 30. f4 {[%emt 0:00:15]} Bf8 $2 {[%emt 0:01:57]} (30... f6) 31. Ba1 {[%emt 0:02:37] Strongly threatening exd6.} a5 $2 {[%emt 0:00:46]} (31... Bg7 32. Qd2 f5 33. exd6 Rxd6) 32. Bg2 {[%emt 0:03:01] exd6 would be deadly.} Qb6 {[%emt 0:00:52]} 33. exd6 {[%emt 0:00:57]} Rxd6 {[%emt 0:01:19]} (33... Red7 34. f5 (34. Qb2 Bg7 $11) 34... gxf5) 34. Rxd6 {[%emt 0:00:19]} ({Not} 34. Qb2 Rd4 $18) 34... Nxd6 {[%emt 0:00:15]} 35. Qb2 {[%emt 0:00:13][%csl Ga1][%cal Rb2h8] White mates.} f5 {[%emt 0:03:43]} 36. Bd5+ {[%emt 0:00:47] A strong pair of Bishops.} Nf7 {[%emt 0:00:07]} 37. Qh8# {Weighted Error Value: White=0.24 (precise) /Black=0.60} 1-0

[Event "1st FIDE Olympiad DIS 2023"]
[Site "Belgrade"]
[Date "2023.02.03"]
[Round "5.27"]
[White "Damjanovic, Radovan"]
[Black "Abiad Parra, Victor"]
[Result "0-1"]
[ECO "C50"]
[WhiteElo "1807"]
[BlackElo "1855"]
[Annotator "NA COMBH"]
[PlyCount "100"]
[EventDate "2023.01.30"]
[EventType "team-tourn"]
[EventCountry "SRB"]
[SourceTitle "playchess.com"]
[Source "ChessBase"]
[SourceQuality "1"]
[WhiteTeam "Montenegro"]
[BlackTeam "Venezuela"]
[WhiteTeamCountry "MNE"]
[BlackTeamCountry "VEN"]
[TimeControl "40/5400+30:1800+30"]

1. e4 {[%emt 0:00:10]} e5 {[%emt 0:00:12]} 2. Nf3 {[%emt 0:00:12]} Nc6 {[%emt 0:00:07]} 3. Bc4 {[%emt 0:00:14]} Bc5 {[%emt 0:00:09]} 4. O-O {[%emt 0:00:12]} Nf6 {[%emt 0:00:10]} 5. d4 {[%emt 0:00:45]} Bxd4 {[%emt 0:01:19]} 6. Nxd4 {[%emt 0:02:14]} Nxd4 {[%emt 0:00:14]} 7. Bg5 {[%emt 0:01:43]} h6 {[%emt 0:01:47]} 8. Bh4 {[%emt 0:03:26]} Qe7 {[%emt 0:00:23]} 9. Kh1 {[%emt 0:06:27]} g5 $19 {[%emt 0:01:58]} 10. c3 {[%emt 0:27:54]} Ne6 {[%emt 0:03:32]} 11. Bg3 {[%emt 0:00:56]} d6 {[%emt 0:02:43]} 12. f3 {[%emt 0:01:11]} Bd7 {[%emt 0:02:41]} 13. Na3 {[%emt 0:00:33]} a6 {[%emt 0:05:07]} 14. Bf2 {[%emt 0:01:43]} O-O {[%emt 0:18:27]} 15. Nc2 {[%emt 0:01:46]} Ng7 {[%emt 0:06:17]} 16. Qd2 {[%emt 0:05:39]} Be6 {[%emt 0:00:48]} 17. Bd3 {[%emt 0:01:05]} Nd7 {[%emt 0:13:27]} 18. Ne3 {[%emt 0:04:02]} f6 {[%emt 0:04:53]} 19. Bc2 {[%emt 0:01:40]} Qf7 {[%emt 0:07:26]} 20. Nd5 {[%emt 0:03:15]} Bxd5 {[%emt 0:01:27]} 21. exd5 {[%emt 0:00:06]} f5 {[%emt 0:00:31]} 22. c4 {[%emt 0:00:53]} Nf6 {[%emt 0:01:03]} 23. b4 {[%emt 0:02:34]} Qh5 {[%emt 0:12:42]} 24. Bd1 {[%emt 0:06:16]} Qg6 {[%emt 0:04:15]} 25. c5 {[%emt 0:00:44]} h5 {[%emt 0:00:16]} 26. cxd6 {[%emt 0:01:10]} cxd6 {[%emt 0:00:01]} 27. Be2 {[%emt 0:01:24]} h4 {[%emt 0:02:03]} 28. h3 {[%emt 0:00:27]} Nfh5 {[%emt 0:00:28]} 29. Kg1 {[%emt 0:01:14]} Nf4 {[%emt 0:00:24]} 30. Be3 {[%emt 0:00:49]} Nxe2+ {[%emt 0:01:57]} 31. Qxe2 {[%emt 0:00:09]} Nh5 {[%emt 0:00:29]} 32. Bf2 {[%emt 0:01:06]} Nf4 {[%emt 0:00:18]} 33. Qd2 {[%emt 0:02:35]} Qf7 {[%emt 0:00:21]} 34. Rfd1 {[%emt 0:00:38]} Rac8 {[%emt 0:00:33]} 35. Be3 {[%emt 0:00:29]} Rc4 {[%emt 0:00:52]} 36. Bxf4 {[%emt 0:00:33]} gxf4 {[%emt 0:04:02]} 37. a3 {[%emt 0:01:23]} Rfc8 {[%emt 0:01:44]} 38. Qf2 {[%emt 0:03:21]} Qe7 {[%emt 0:00:21]} 39. Ra2 {[%emt 0:03:20]} Qg5 {[%emt 0:01:03]} 40. Qd2 {[%emt 0:03:04]} Qg3 {[%emt 0:00:55]} 41. Kf1 {[%emt 0:03:38]} Rc3 {[%emt 0:31:29]} 42. Qf2 {[%emt 0:07:12]} Qxf2+ {[%emt 0:01:13]} 43. Kxf2 {[%emt 0:01:33]} R8c4 {[%emt 0:00:42]} 44. Kf1 {[%emt 0:03:56]} Kf7 {[%emt 0:00:00]} 45. Ke1 {[%emt 0:00:37]} Rc2 {[%emt 0:00:00]} 46. Rxc2 {[%emt 0:00:00]} Rxc2 {[%emt 0:00:00]} 47. Rd2 {[%emt 0:02:27]} Rxd2 {[%emt 0:00:00]} 48. Kxd2 {[%emt 0:00:09]} e4 {[%emt 0:00:00]} 49. Kc3 {[%emt 0:03:20]} e3 {[%emt 0:00:00]} 50. Kd3 {[%emt 0:00:22]} Kf6 {[%emt 0:00:00]} 0-1

[Event "1st FIDE Olympiad DIS 2023"]
[Site "Belgrade"]
[Date "2023.02.03"]
[Round "5.28"]
[White "Monterrey, Henry"]
[Black "Lacmanovic, Radenko"]
[Result "1-0"]
[ECO "C60"]
[WhiteElo "1759"]
[BlackElo "1349"]
[Annotator "NA COMBH"]
[PlyCount "53"]
[EventDate "2023.01.30"]
[EventType "team-tourn"]
[EventCountry "SRB"]
[SourceTitle "playchess.com"]
[Source "ChessBase"]
[SourceQuality "1"]
[WhiteTeam "Venezuela"]
[BlackTeam "Montenegro"]
[WhiteTeamCountry "VEN"]
[BlackTeamCountry "MNE"]
[TimeControl "40/5400+30:1800+30"]

1. e4 {[%emt 0:01:08]} e5 {[%emt 0:00:14]} 2. Nf3 {[%emt 0:00:22]} Nc6 {[%emt 0:00:17]} 3. Bb5 {[%emt 0:00:35]} Nge7 {[%emt 0:05:26]} 4. O-O {[%emt 0:01:11]} a6 {[%emt 0:01:07]} 5. Ba4 {[%emt 0:00:25]} b5 {[%emt 0:03:28]} 6. Bb3 {[%emt 0:00:08]} h6 {[%emt 0:00:32]} 7. c3 {[%emt 0:00:34]} d6 {[%emt 0:03:23]} 8. d4 {[%emt 0:01:29]} Bg4 {[%emt 0:05:49]} 9. h3 {[%emt 0:03:39]} Bh5 {[%emt 0:03:58]} 10. a4 {[%emt 0:13:25]} b4 {[%emt 0:05:19]} 11. d5 {[%emt 0:03:57]} Bxf3 {[%emt 0:14:33]} 12. Qxf3 {[%emt 0:00:35]} Na5 {[%emt 0:00:46]} 13. cxb4 {[%emt 0:00:16]} Nxb3 {[%emt 0:01:02]} 14. Qxb3 {[%emt 0:00:07]} c6 {[%emt 0:02:18]} 15. Nc3 {[%emt 0:05:54]} Qb6 {[%emt 0:06:08]} 16. dxc6 {[%emt 0:03:32]} Nxc6 {[%emt 0:01:13]} 17. Nd5 {[%emt 0:00:41]} Qb7 {[%emt 0:01:39]} 18. Be3 {[%emt 0:01:51]} Rb8 {[%emt 0:00:52]} 19. Bb6 {[%emt 0:02:19]} a5 {[%emt 0:08:44]} 20. b5 {[%emt 0:06:38]} Nb4 21. Nc7+ {[%emt 0:00:00]} Ke7 {[%emt 0:00:36]} 22. Bxa5 {[%emt 0:00:00]} Nc6 {[%emt 0:08:35]} 23. Nd5+ {[%emt 0:00:09]} Ke8 {[%emt 0:05:31]} 24. Bc7 {[%emt 0:01:32]} Nd4 {[%emt 0:04:30]} 25. Qd3 {[%emt 0:01:20]} Rc8 {[%emt 0:04:11]} 26. b6 {[%emt 0:01:43]} Ne6 {[%emt 0:02:17]} 27. Qb5+ {[%emt 0:00:24]} 1-0

[Event "1st FIDE Olympiad DIS 2023"]
[Site "Belgrade"]
[Date "2023.02.03"]
[Round "5.29"]
[White "Banda Aaron"]
[Black "Jimenez Moron, Elias"]
[Result "1-0"]
[ECO "D30"]
[WhiteElo "1901"]
[BlackElo "1967"]
[Annotator "TA"]
[PlyCount "99"]
[EventDate "2023.01.30"]
[EventType "team-tourn"]
[EventCountry "SRB"]
[SourceTitle "playchess.com"]
[Source "ChessBase"]
[SourceQuality "1"]
[WhiteTeam "Zambia"]
[BlackTeam "Panama"]
[WhiteTeamCountry "ZAM"]
[BlackTeamCountry "PAN"]
[TimeControl "40/5400+30:1800+30"]

{[%evp 14,99,25,21,32,29,59,64,105,108,101,108,109,100,255,184,204,189,209,191,185,165,235,181,225,212,236,238,314,320,318,318,308,259,296,240,392,389,437,373,499,494,488,456,615,585,667,653,658,652,646,612,1076,1079,1029,1026,989,933,29971,29971,29972,12835,29973,29974,29972,1666,29978,29977,29978,29979,29980,29981,29982,29983,29983,29983,29983,29984,29984,29984,29984,29985,29984,29985,29985,29986,29986,29987]} 1. d4 {[%emt 0:00:07]} d5 {[%emt 0:00:08]} 2. Nf3 {[%emt 0:00:16]} Nf6 {[%emt 0:00:12]} 3. e3 {[%emt 0:00:25]} e6 {[%emt 0:01:46]} 4. Bd3 {[%emt 0:00:26]} Nbd7 {[%emt 0:00:40]} 5. Nbd2 {[%emt 0:01:16]} Be7 {[%emt 0:00:44]} 6. c4 {[%emt 0:02:25]} c6 {[%emt 0:02:20]} 7. b3 {[%emt 0:01:54]} O-O {[%emt 0:01:08]} 8. O-O {[%emt 0:00:00]} Bd6 {[%emt 0:01:54] D30: Queen's Gambit Declined: Systems without Nc3.} 9. Bb2 {[%emt 0:00:00]} Re8 {[%emt 0:01:58]} 10. Ne5 {[%emt 0:05:16]} Bf8 {[%emt 0:01:46] White is slightly better.} 11. f4 {[%emt 0:04:13] White is much more active. The black rooks are badly placed.} g6 {[%emt 0:02:59] [#]} 12. g4 $146 {[%emt 0:03:07][%cal Bg2g4,Bg4g5][%mdl 32]} ({Predecessor:} 12. c5 Bg7 13. b4 a6 14. a4 Qc7 15. Qe2 Rf8 16. Bc3 Nxe5 17. fxe5 {1-0 Weiler,D (2172)-Beck,M (1909) Wiesbaden op 24th 2012 (4)}) 12... Bg7 {[%emt 0:06:35]} 13. g5 {[%emt 0:01:53]} Ne4 {[%emt 0:18:01]} 14. Nxe4 {[%emt 0:00:51]} dxe4 {[%emt 0:00:07]} 15. Bxe4 {[%emt 0:00:42]} f6 {[%emt 0:01:02]} 16. Nxd7 {[%emt 0:08:48]} Bxd7 {[%emt 0:02:36]} 17. h4 {[%emt 0:01:04][%cal Bh2h4,Bh4h5,Bh5h6][%mdl 32]} Rc8 {[%emt 0:02:16]} (17... e5 $142) 18. Rf2 {[%emt 0:01:25]} f5 {[%emt 0:01:14]} 19. Bf3 {[%emt 0:01:38]} b6 {[%emt 0:00:49]} 20. h5 {[%emt 0:04:14]} Qe7 {[%emt 0:01:14]} 21. h6 {[%emt 0:03:05]} Bh8 {[%emt 0:01:18]} 22. Qd2 {[%emt 0:01:32]} Rcd8 {[%emt 0:00:57]} 23. Re1 {[%emt 0:05:39]} Qf7 {[%emt 0:06:36]} 24. e4 {[%emt 0:02:41]} c5 $2 {[%emt 0:32:42]} (24... fxe4 {was called for.} 25. Bxe4 Rf8) 25. e5 $18 {[%emt 0:02:03]} cxd4 {[%emt 0:02:34]} 26. Bxd4 {[%emt 0:00:32]} ({Weaker is} 26. Qxd4 Bc8 $18) 26... Bc8 {[%emt 0:00:07] Black is weak on the dark squares} 27. Qe3 {[%emt 0:00:41]} Bb7 {[%emt 0:00:11]} 28. Rd2 {[%emt 0:01:35]} Re7 {[%emt 0:00:35]} 29. Red1 {[%emt 0:01:23]} Qe8 {[%emt 0:01:15]} 30. Bc3 {[%emt 0:02:02][%cal Bd4c3,Bc3b4,Bb4d6][%mdl 32]} Rxd2 {[%emt 0:00:20]} 31. Rxd2 {[%emt 0:00:32]} Kf7 {[%emt 0:01:02]} 32. Bb4 {[%emt 0:02:03]} Rd7 {[%emt 0:00:58]} 33. Rxd7+ {[%emt 0:01:21]} Qxd7 {[%emt 0:00:05]} 34. Bxb7 {[%emt 0:00:17]} Qxb7 {[%emt 0:00:01][%mdl 4096] Endgame KQB-KQB} 35. Qd3 {[%emt 0:00:41] [#] Intending Qd8 and mate.} Qc7 {[%emt 0:01:16] Wards off Qd8} 36. Qd6 {[%emt 0:05:09]} Qxd6 {[%emt 0:00:26]} 37. Bxd6 {[%emt 0:00:13] Threatening mate with a4. KB-KB} Ke8 {[%emt 0:00:01]} 38. b4 {[%emt 0:00:32]} Kd7 {[%emt 0:00:01]} 39. a4 {[%emt 0:00:32][%cal Ba2a4,Ba4b5][%mdl 32] [#] White threatens b5 and mate.} a6 {[%emt 0:00:22]} 40. Bf8 {[%emt 0:00:35] White mates.} Bxe5 {[%emt 0:00:28]} 41. fxe5 {[%emt 0:31:40] KB-KP} Kc6 {[%emt 0:30:08]} 42. b5+ {[%emt 0:00:59]} axb5 {[%emt 0:00:19]} 43. axb5+ {[%emt 0:00:16]} Kb7 {[%emt 0:00:06]} 44. Bd6 {[%emt 0:01:08]} Ka7 {[%emt 0:00:18]} 45. Kf2 {[%emt 0:00:45]} Kb7 {[%emt 0:00:01]} 46. Ke3 {[%emt 0:00:34]} Ka7 {[%emt 0:00:13]} 47. Bb4 {[%emt 0:00:38]} Kb7 {[%emt 0:00:10]} 48. Kd4 {[%emt 0:00:19]} Kc7 {[%emt 0:00:12]} 49. Bd2 {[%emt 0:00:38]} Kd7 {[%emt 0:00:20]} 50. c5 {[%emt 0:00:24] Black got outplayed after the opening.   Weighted Error Value: White=0.10 (very precise) /Black=0.73} 1-0